Cogmind - Beta 14 *** ADVENTURER MODE // 2024.08.09 @ 12:36:45 Player: AnotherZach Result: Destroyed by Enhanced Demolisher with Chain Missile Launcher Performance ------------- Evolutions (6) 3000 Regions Visited (11) 2200 Robots Destroyed (105) 525 Value Destroyed (3085) 3085 Prototype IDs (21) 420 Alien Tech Used (0) 0 Bonus (2569) 2569 TOTAL SCORE: 11799 Bonus ------- High Alert Combat Kills 510 Follower Combat Kills 353 Registered with UFD 300 Met Warlord at Base 500 MAIN.C Attacked Warlord 500 Warlord Defense Kills 646 Friendly Fire -240 Cogmind --------- Core Integrity 0/1150 Matter 300/300 Energy 100/100 System Corruption 0% Temperature Cool (0) Movement Core (50) Location -4/Warlord Parts ------- > --- POWER (1) -------- (None) > --- PROPULSION (6) --- (None) > --- UTILITY (10) ----- Advanced Melee Analysis Suite Advanced Melee Analysis Suite Improved Target Analyzer > --- WEAPON (2) ------- (None) > --- INVENTORY (5) ---- Advanced Actuator Array Advanced Reaction Control System Improved Weapon Shielding Advanced Thermal Shield Companion Sword Peak State ------------ > --- POWER ------------ Light Quantum Reactor > --- PROPULSION ------- Flexi-carbon Leg Flexi-carbon Leg Flexi-carbon Leg Myomer Leg Myomer Leg Myomer Leg > --- UTILITY ---------- Medium Storage Unit Improved Signal Interpreter Advanced Targeting Computer Advanced Melee Analysis Suite Advanced Melee Analysis Suite Advanced Melee Analysis Suite Improved Target Analyzer Advanced Actuator Array Advanced Reaction Control System Improved Remote Force Field > --- WEAPON ----------- Companion Sword Phasing Sabre > --- INVENTORY -------- Neutrino Core Advanced Heat Sink Compact Battery Advanced Thermal Shield Authchip [Propulsion] Vortex Shotgun KE Penetrator Dirty Datajack Ripper [Rating: 111] Favorites ----------- Power Improved Deuterium Engine Engine Improved Deuterium Engine Power Core Nuclear Core Reactor Light Quantum Reactor Propulsion Improved Treads Treads Improved Treads Leg Flexi-carbon Leg Wheel Armored Huge Wheel Hover Unit Antigrav System Flight Unit Xenon Bombardment Thruster Utility Huge Storage Unit Device Disposable Heat Sink Storage Huge Storage Unit Processor Advanced Melee Analysis Suite Hackware Makeshift System Shield Protection Core Shielding Weapon Companion Sword Energy Gun Improved EM Shotgun Energy Cannon Enhanced Nova Cannon Ballistic Gun Gauss Rifle Launcher Mini Grenade Launcher Special Weapon CPS Tube Slashing Weapon Companion Sword Special Melee Weapon Dirty Datajack Build | -11 -10 -10 -7 -7 -5 -5 -5 -4 -4 -4 -4 ------- Run | Yrd Mat Sub Rec Scr Fac Was Fac Fac Upp Upp War Slots Evolved 12 | . . . . . 10 . . 2 . . . Power . | . . . . . . . . . . . . Propulsion 4 | . . . . . 4 . . . . . . Utility 8 | . . . . . 6 . . 2 . . . Weapon . | . . . . . . . . . . . . Parts Attached 226 | 7 13 6 5 11 61 16 36 18 18 8 27 Power 28 | 1 1 . 1 2 8 1 3 2 4 1 4 Engine 11 | 1 1 . 1 2 1 . . 1 4 . . Core 8 | . . . . . 5 . 1 . . 1 1 Reactor 9 | . . . . . 2 1 2 1 . . 3 Propulsion 65 | 2 4 1 1 1 20 5 10 9 6 1 5 Treads 5 | . 2 1 1 . . . . . . 1 . Leg 10 | . 2 . . . . . . . 3 . 5 Wheel 7 | 2 . . . 1 . . 4 . . . . Hover 12 | . . . . . . 1 4 7 . . . Flight 31 | . . . . . 20 4 2 2 3 . . Utility 84 | 2 4 3 1 4 25 1 20 6 3 6 9 Device 31 | . . 1 1 . 8 1 8 2 2 3 5 Storage 15 | 2 3 1 . 3 2 . . 1 . 1 2 Processor 12 | . . . . . 1 . 5 2 1 2 1 Hackware 8 | . . . . . 7 . 1 . . . . Protection 18 | . 1 1 . 1 7 . 6 1 . . 1 Artifact . | . . . . . . . . . . . . Weapon 49 | 2 4 2 2 4 8 9 3 1 5 . 9 Energy Gun 9 | . 4 1 2 . . . . . . . 2 Energy Cannon 1 | . . . . . . 1 . . . . . Ballistic Gun 13 | 2 . . . 2 2 3 . . 2 . 2 Ballistic Cannon . | . . . . . . . . . . . . Launcher 6 | . . 1 . . 1 2 2 . . . . Special Weapon 8 | . . . . . 4 3 . 1 . . . Impact Weapon . | . . . . . . . . . . . . Slashing Weapon 7 | . . . . 2 1 . . . 1 . 3 Piercing Weapon . | . . . . . . . . . . . . Special Melee Weapon 5 | . . . . . . . 1 . 2 . 2 Unidentified Prototypes 5 | . 1 . . 1 1 . . . . . 2 Corrupted Parts 1 | . . . . 1 . . . . . . . System Corruption 6 | . . . . 6 . . . . . . . Parts Lost 63 | . . 2 1 . 6 . 19 6 14 . 15 Power 8 | . . . 1 . . . 2 . 4 . 1 Propulsion 30 | . . 1 . . 3 . 8 4 8 . 6 Utility 21 | . . . . . 2 . 7 2 2 . 8 Weapon 4 | . . 1 . . 1 . 2 . . . . Highest Loss Streak 13 | . . 2 1 . 1 . 9 5 4 . 13 To Critical Strikes 1 | . . . . . . . . . 1 . . Average Slot Usage (%) 87 | . 100 96 98 89 88 82 74 59 46 82 88 Engine 9 | . 14 14 14 14 . . . . 1 . . Treads 13 | . 17 28 28 19 . . . . . 2 3 Leg 2 | . 10 . . . . . . . 1 15 17 Wheel 2 | . . . . 4 . . 1 . . . . Flight 4 | . . . . . 31 16 14 . 3 . . Device 9 | . . 5 13 9 7 17 11 9 3 12 13 Storage 10 | . 15 14 14 13 5 5 5 4 1 4 5 Processor 5 | . . . . . 2 5 10 20 21 32 30 Hackware 2 | . . . . . 14 11 8 . . . . Protection 2 | . 12 8 . . 5 5 1 . . . . Energy Gun 5 | . 27 23 26 . . . . . . . . Ballistic Gun 7 | . . . . 15 2 2 . . 2 . . Slashing Weapon 6 | . . . . 10 5 5 5 5 1 5 7 Peak Build Rating 111 | 7 15 17 20 35 90 96 92 80 77 90 111 Average Rating 40 | 5 12 15 19 27 66 90 79 52 41 83 90 On Entrance 42 | . 7 15 13 14 35 88 91 29 75 57 90 Naked Turns . | . . . . . . . . . . . . Heaviest Build 221 | 16 32 92 92 216 221 49 38 39 39 44 61 Greatest Support 135 | 26 46 46 46 46 39 39 84 55 45 65 135 Greatest Overweight (x) 7 | . 1 1 1 7 7 1 4 1 1 1 . Average Overweight (x) 1 | . . . 1 3 . . . . . . . Largest Inventory Capacity 35 | 8 15 25 25 35 35 10 10 10 10 10 10 Average Capacity 19 | 7 10 22 25 27 11 10 10 9 6 9 9 Most Carried 35 | 8 15 20 25 35 35 10 10 8 10 10 10 Average Carried 17 | 5 9 18 24 25 10 9 9 4 5 8 9 Final Capacity 35 | 8 15 25 25 35 10 10 10 10 5 10 5 Final Carried 35 | 8 15 20 25 35 7 10 6 5 5 10 5 Class Distribution -------------------- 55% | Mutant 11% | Hauler-Mutant 9% | Hacker-Mutant 8% | Scavenger-Mutant 6% | Hacker-Sprinter Dominant Class ---------------- Mutant | -10/Materials Mutant | -10/Subcaves Mutant | -7/Recycling Mutant | -7/Scraptown Hacker-Sprinter | -5/Factory Hacker-Mutant | -5/Waste Hacker-Mutant | -5/Factory Scavenger-Scout | -4/Factory Scavenger-Mutant | -4/Upper Caves Scavenger-Mutant | -4/Upper Caves Scavenger-Mutant | -4/Warlord Resources | -11 -10 -10 -7 -7 -5 -5 -5 -4 -4 -4 -4 ----------- Run | Yrd Mat Sub Rec Scr Fac Was Fac Fac Upp Upp War Matter Collected 3349 | 375 69 37 170 110 890 410 536 193 192 108 259 Remotely . | . . . . . . . . . . . . Salvage Created 4300 | 133 180 179 558 . 1183 . 1230 313 225 74 225 Parts 229 | 10 24 12 23 . 59 . 51 24 15 3 8 Haulers Intercepted 4 | . . . . . 2 . 2 . . . . Recyclers Shooed 7 | . . . 2 . 4 . 1 . . . . Parts Field Recycled . | . . . . . . . . . . . . Retrieved Matter . | . . . . . . . . . . . . Parts Self-Destructed 22 | . . 12 . . . . . . 10 . . Prevented . | . . . . . . . . . . . . Kills | -11 -10 -10 -7 -7 -5 -5 -5 -4 -4 -4 -4 ------- Run | Yrd Mat Sub Rec Scr Fac Was Fac Fac Upp Upp War Combat Hostiles Destroyed 57 | . 11 6 2 . 9 . 14 2 7 . 6 Melee 18 | . . . . . 9 . 3 2 1 . 3 Guns 20 | . 11 1 1 . . . . . 5 . 2 AOE 16 | . . 4 . . . . 11 . 1 . . Classes Destroyed 17 | 3 3 2 1 . 4 . 2 . . . 2 Worker 11 | 2 1 . . . 4 . 1 3 . . . Builder 3 | . . . . . 1 . 2 . . . . Tunneler 2 | 2 . . . . . . . . . . . Hauler 4 | . . . . . 2 . 2 . . . . Recycler 15 | 1 . . 5 . 4 . 4 1 . . . Operator 2 | . . . . . 1 . 1 . . . . Turret 2 | . . 2 . . . . . . . . . Watcher 8 | . 3 . . . 3 . 1 1 . . . Swarmer 25 | . 9 4 . . 5 . . . 5 . 2 Saboteur 1 | . . . . . . . . . . . 1 Grunt 12 | . 2 . . . 1 . 5 . 2 . 2 Brawler 2 | . . . . . . . 2 . . . . Sentry 4 | . . . 2 . . . 1 . . 1 . Hunter 2 | . . . . . . . 2 . . . . Programmer 9 | . . . . . 3 . 4 2 . . . Executioner 1 | . . . . . . . . . . . 1 Subdweller 2 | . . 2 . . . . . . . . . Best Kill Streak 8 | 5 5 4 4 . 5 . 8 2 4 . 2 Combat Bots Only 4 | . 3 4 1 . 3 . 3 2 4 . 2 Max Kills in Single Turn 5 | 1 2 2 2 . 1 . 5 1 1 1 1 Gunslinging . | . . . . . . . . . . . . Exploded 3 | . . 2 . . . . 3 . 1 . . Melee 1 | . . . . . 1 . 1 1 1 . 1 Uniques/NPCs Destroyed . | . . . . . . . . . . . . Combat | -11 -10 -10 -7 -7 -5 -5 -5 -4 -4 -4 -4 -------- Run | Yrd Mat Sub Rec Scr Fac Was Fac Fac Upp Upp War Hostile Shots Fired 1016 | . 29 119 36 . 185 . 236 65 111 6 229 Missed 391 | . 8 39 16 . 80 . 77 26 44 3 98 Damage Taken 9583 | . 129 505 186 . 1452 20 3003 848 921 60 2459 Core 2211 | . 20 65 21 . 225 20 664 112 282 40 762 Absorbed by Shields 163 | . . . . . . . . . . . 163 Redirected to Shielding 205 | . 1 4 . . 62 . 138 . . . . Ignored by Resistances 2791 | . 45 172 56 . 479 6 799 233 268 15 718 Regen/Repaired (Parts) 455 | . . . . . 42 214 . . . . 199 Core Remaining (%) 55 | 100 . . . 57 . . 9 . . . . Volleys Fired 118 | 15 22 13 14 . 9 6 16 2 14 . 7 Largest 2 | 2 2 2 2 . 1 1 1 1 1 . 1 Hottest 130 | 40 130 90 90 . 30 120 43 7 33 . 60 Shots Fired 180 | 27 45 23 29 . 9 7 16 2 15 . 7 Gun 154 | 27 45 21 29 . 5 5 . . 15 . 7 Cannon 2 | . . . . . . 2 . . . . . Launcher 18 | . . 2 . . . . 16 . . . . Special 6 | . . . . . 4 . . 2 . . . Kinetic 57 | 27 . . . . 5 5 . . 15 . 5 Thermal 45 | . 43 . . . . 2 . . . . . Explosive 18 | . . 2 . . . . 16 . . . . Electromagnetic 52 | . 2 21 29 . . . . . . . . Entropic 2 | . . . . . . . . . . . 2 Robot Hit Streak 37 | 10 10 22 37 . 6 7 13 15 5 . 5 Robot Miss Streak 5 | 2 5 1 1 . 1 2 1 . 2 . 2 Penetration Max 1 | . . . . . . . . . . . 1 Secondary Targets 3 | . 2 1 . . . . . . . . . Max Gunslinging Chain 1 | . 1 1 . . . . . . . . . Shots Hit Robots 288 | 21 33 22 26 . 59 5 52 13 29 2 26 Core Hits 182 | 6 40 14 15 . 32 1 41 5 17 2 9 Critical Kills 1 | . . . . . . . . . . . 1 Critical Parts Destroyed 2 | . . . . . . . . . 2 . . Critical Strikes 5 | . . . . . 2 . . . 2 . 1 Destroy 3 | . . . . . . . . . 2 . 1 Melee Attacks 235 | . . . . . 106 . 67 16 21 2 23 Impact . | . . . . . . . . . . . . Slashing 199 | . . . . . 106 . 58 16 2 1 16 Piercing 27 | . . . . . . . . . 19 1 7 Sneak Attacks 40 | . . . . . 11 . 16 5 6 1 1 Combat Hostiles 7 | . . . . . . . . . 6 . 1 Follow-up Attacks 1 | . . . . . . . . . . . 1 Damage Inflicted 11745 | 256 484 673 559 . 3249 154 4401 781 378 81 729 Guns 2022 | 256 385 350 468 . 114 69 . . 214 . 166 Cannons 85 | . . . . . . 85 . . . . . Explosions 3789 | . 99 323 91 . 502 . 2774 . . . . Melee 5823 | . . . . . 2633 . 1619 763 164 81 563 Ramming 26 | . . . . . . . 8 18 . . . Kinetic 790 | 256 . . . . 114 69 . . 214 . 137 Thermal 963 | . 367 . 91 . 281 85 139 . . . . Explosive 3188 | . 99 323 . . 131 . 2635 . . . . Electromagnetic 926 | . 18 350 468 . 90 . . . . . . Impact . | . . . . . . . . . . . . Slashing 5726 | . . . . . 2633 . 1619 763 92 78 541 Piercing 97 | . . . . . . . . . 72 3 22 Entropic 29 | . . . . . . . . . . . 29 Highest Corruption 21 | . 1 1 1 7 4 4 21 3 3 3 3 Average Corruption 2 | . 1 1 1 7 3 4 8 2 3 3 3 Corruption Purged 8 | . . . . . . . 8 . . . . Corruption Blocked 6 | . . . . . . . 6 . . . . Effects 76 | . 5 1 17 . 4 12 13 2 13 8 1 Message Errors 16 | . . 1 4 . 1 1 3 1 3 2 . Matter Fused 20 | . 3 . 3 . 1 6 3 . 2 2 . Heat Flow Errors 6 | . 1 . 1 . 1 1 1 . . 1 . Energy Discharges 11 | . . . 4 . . 2 . 1 2 1 1 Parts Rejected 1 | . . . . . . . . . 1 . . Parts Fused 1 | . . . . . . . 1 . . . . Data Loss (minor) 8 | . . . 3 . . 1 . . 3 1 . Data Loss (major) 5 | . . . 1 . . . 2 . 1 1 . Misfires 4 | . 1 . 1 . . 1 . . 1 . . Alerts 2 | . . . . . 1 . 1 . . . . Misdirections 2 | . . . . . . . 2 . . . . Overload Shots . | . . . . . . . . . . . . Overflow Damage 1041 | . . 5 23 . 472 . 307 207 . . 27 Projectiles . | . . . . . . . . . . . . Explosions 299 | . . 5 23 . 135 . 136 . . . . Melee 742 | . . . . . 337 . 171 207 . . 27 Knockbacks 1 | . . . . . . . 1 . . . . Impact 1 | . . . . . . . 1 . . . . Kinetic . | . . . . . . . . . . . . Secondary . | . . . . . . . . . . . . Self-Inflicted Damage 122 | . 8 . 24 . . . 82 8 . . . Shots 6 | . 1 . 1 . . . 4 . . . . Rammed 4 | . . . . . . . 2 2 . . . Targets Rammed 4 | . . . . . . . 2 2 . . . Kicked . | . . . . . . . . . . . . Crushed . | . . . . . . . . . . . . Highest Temperature 427 | . 276 229 209 . 427 115 263 57 38 160 17 Average Temperature 49 | . 86 102 65 . 34 43 109 32 13 98 11 Received Heat Transfer 2118 | . 6 686 60 . 351 . 156 189 108 9 553 Effects 1 | . . . . . 1 . . . . . . Interference 1 | . . . . . 1 . . . . . . Siege Activations . | . . . . . . . . . . . . Robots Corrupted 3 | . . 2 1 . . . . . . . . Combat Hostiles 2 | . . 1 1 . . . . . . . . Parts Fried 5 | . . 2 3 . . . . . . . . Impact Corruptions . | . . . . . . . . . . . . Robots Melted . | . . . . . . . . . . . . Combat Hostiles . | . . . . . . . . . . . . Parts Melted 1 | . . . . . . . . . . . 1 Heat Transferred 939 | . 465 . 150 . 150 74 100 . . . . Parts Sabotaged 5 | . . . . . . . 1 . . . 4 Parts Stolen . | . . . . . . . . . . . . Parts Stripped . | . . . . . . . . . . . . Power Chain Reactions 1 | . . . 1 . . . . . . . . Alert | -11 -10 -10 -7 -7 -5 -5 -5 -4 -4 -4 -4 ------- Run | Yrd Mat Sub Rec Scr Fac Was Fac Fac Upp Upp War Peak Influence 1198 | 25 390 . 198 . 800 372 1198 543 . . . Initial 456 | . 13 . 158 . . 234 105 456 . . . Average 280 | 8 117 . 50 . 334 290 710 447 . . . Maximum Alert Level 4 | . 1 . . . 3 1 4 2 . . . Low Security (%) 49 | 100 73 . 100 . 23 27 . . . . . Level 1 22 | . 26 . . . 42 72 5 20 . . . Level 2 17 | . . . . . 28 . 38 79 . . . Level 3 9 | . . . . . 5 . 50 . . . . Level 4 1 | . . . . . . . 5 . . . . Level 5 . | . . . . . . . . . . . . High Security . | . . . . . . . . . . . . Max Security . | . . . . . . . . . . . . Squads Dispatched 44 | . 1 . . . 16 . 24 3 . . . Investigation 23 | . 1 . . . 9 . 13 . . . . Extermination 7 | . . . . . 3 . 3 1 . . . Reinforcement 6 | . . . . . 3 . 3 . . . . Assault 5 | . . . . . 1 . 2 2 . . . Garrison 3 | . . . . . . . 3 . . . . Intercept . | . . . . . . . . . . . . Searches Triggered . | . . . . . . . . . . . . Construction Impeded 1 | . . . . . 1 . . . . . . Haulers Reinforced 1 | . . . . . . . 1 . . . . Active Scanning Responses . | . . . . . . . . . . . . Cargo Convoy Interrupts 1 | . . . . . 1 . . . . . . Stealth | -11 -10 -10 -7 -7 -5 -5 -5 -4 -4 -4 -4 --------- Run | Yrd Mat Sub Rec Scr Fac Was Fac Fac Upp Upp War Distress Signals 8 | . 2 . . . 2 . . . . . 4 Communications Jammed . | . . . . . . . . . . . . Distress Signals . | . . . . . . . . . . . . Times Spotted 260 | . 19 19 2 . 59 4 48 25 33 1 50 Peak Tracking Total 18 | . 5 6 1 . 9 2 12 18 7 1 12 Tactical Retreats 58 | . 2 3 . . 17 . 17 3 9 . 7 Traps | -11 -10 -10 -7 -7 -5 -5 -5 -4 -4 -4 -4 ------- Run | Yrd Mat Sub Rec Scr Fac Was Fac Fac Upp Upp War Traps Triggered 4 | . 2 . . . 2 . . . . . . Indirectly . | . . . . . . . . . . . . Trap Hack Attempts . | . . . . . . . . . . . . Triggered . | . . . . . . . . . . . . Disarmed . | . . . . . . . . . . . . Reprogrammed 4 | . . . . . . . 4 . . . . Reused 1 | . . . . . . . 1 . . . . Traps Extracted . | . . . . . . . . . . . . Installed . | . . . . . . . . . . . . Triggered 22 | . . . . . 2 . 1 . . . 19 Most Traps Carried 1 | . . 1 1 . . . . . . . . Objects Rigged 10 | . . . . . 5 . 5 . . . . Exploded 7 | . . . . . 4 . 3 . . . . Machines | -11 -10 -10 -7 -7 -5 -5 -5 -4 -4 -4 -4 ---------- Run | Yrd Mat Sub Rec Scr Fac Was Fac Fac Upp Upp War Machines Disabled 22 | . 3 2 . . 7 . 10 . . . . Max in Single Turn 4 | . 2 1 . . 3 . 4 . . . . Garrison Access 4 | . . . . . 3 . 1 . . . . Machines Repaired . | . . . . . . . . . . . . Machines Dismantled . | . . . . . . . . . . . . Machines Sabotaged . | . . . . . . . . . . . . Overloaded Fab Kills . | . . . . . . . . . . . . Hacking | -11 -10 -10 -7 -7 -5 -5 -5 -4 -4 -4 -4 --------- Run | Yrd Mat Sub Rec Scr Fac Was Fac Fac Upp Upp War Machines Accessed 60 | . 9 . 8 3 17 . 13 2 2 1 5 Terminals 31 | . 8 . 5 . 8 . 8 1 1 . . Fabricators 3 | . . . . . 3 . . . . . . Repair Stations 1 | . . . . . 1 . . . . . . Recycling Units 10 | . 1 . 3 . 3 . 3 . . . . Scanalyzers 2 | . . . . . . . 1 1 . . . Garrison Access 3 | . . . . . 2 . 1 . . . . Total Hacks 219 | . 30 . 20 6 66 . 68 5 7 1 16 Successful 126 | . 19 . 10 6 28 . 34 5 7 1 16 Failed 93 | . 11 . 10 . 38 . 34 . . . . Catastrophic 16 | . . . 2 . 4 . 10 . . . . Database Lockouts . | . . . . . . . . . . . . Manual 148 | . 27 . 15 . 49 . 54 3 . . . Terminals 144 | . 27 . 13 . 41 . 54 3 6 . . Fabricators 11 | . . . . . 11 . . . . . . Repair Stations 1 | . . . . . 1 . . . . . . Recycling Units 27 | . 3 . 7 . 8 . 9 . . . . Scanalyzers 6 | . . . . . . . 4 2 . . . Garrison Access 6 | . . . . . 5 . 1 . . . . Terminal Hacks 45 | . 3 . 2 6 1 . 9 . 7 1 16 Record 20 | . . . . 4 . . . . 6 . 10 Part Schematic 5 | . 1 . . . . . 4 . . . . Robot Schematic 3 | . 1 . 2 . . . . . . . . Robot Analysis 1 | . 1 . . . . . . . . . . Prototype ID Bank 5 | . . . . . . . . . . . 5 Open Door 4 | . . . . 1 . . . . 1 1 1 Branch Access Points 1 | . . . . . 1 . . . . . . Terminal Index 1 | . . . . . . . 1 . . . . Fabricator Index 1 | . . . . . . . 1 . . . . Scanalyzer Index 1 | . . . . . . . 1 . . . . Reprogram Traps 1 | . . . . . . . 1 . . . . Zone Layout 1 | . . . . . . . 1 . . . . Derelict Proto ID Bank 1 | . . . . 1 . . . . . . . Fabricator Hacks 3 | . . . . . 3 . . . . . . Network Status 1 | . . . . . 1 . . . . . . Load Schematic 1 | . . . . . 1 . . . . . . Build 1 | . . . . . 1 . . . . . . Repair Station Hacks . | . . . . . . . . . . . . Recycling Unit Hacks 3 | . . . 1 . . . 2 . . . . Retrieve Components 3 | . . . 1 . . . 2 . . . . Scanalyzer 4 | . . . . . . . 2 2 . . . Insert Component 2 | . . . . . . . 1 1 . . . Analyze 2 | . . . . . . . 1 1 . . . Garrison Access Hacks 2 | . . . . . 2 . . . . . . Seal Access 2 | . . . . . 2 . . . . . . Unauthorized Hacks 69 | . 16 . 7 . 22 . 21 3 . . . Terminals 51 | . 15 . 4 . 14 . 15 3 . . . Track 7 | . 3 . . . 1 . 3 . . . . Botnet 13 | . 4 . 1 . 4 . 3 1 . . . Detonate 4 | . . . . . 2 . 2 . . . . Disrupt 2 | . . . . . 1 . 1 . . . . Operators 2 | . . . . . . . 1 1 . . . Skim 21 | . 8 . 3 . 6 . 3 1 . . . Sabotage 2 | . . . . . . . 2 . . . . Fabricators 4 | . . . . . 4 . . . . . . Liberate 2 | . . . . . 2 . . . . . . Download 1 | . . . . . 1 . . . . . . Recompile 1 | . . . . . 1 . . . . . . Repair Stations 6 | . . . . . 3 . 3 . . . . Mechanics 1 | . . . . . 1 . . . . . . Recycling Units 6 | . 1 . 3 . 1 . 1 . . . . Reject 6 | . 1 . 3 . 1 . 1 . . . . Fedlink 4 | . . . . . 2 . 2 . . . . Scrapoids 1 | . . . . . . . 1 . . . . Scanalyzers 1 | . . . . . . . 1 . . . . Extract 1 | . . . . . . . 1 . . . . Garrison Access 1 | . . . . . . . 1 . . . . Jam 1 | . . . . . . . 1 . . . . Data Cores Recovered 1 | . . . . . . . 1 . . . . Used . | . . . . . . . . . . . . Hacking Detections 37 | . 6 . 6 . 13 . 10 1 1 . . Full Trace Events 15 | . 2 . 3 . 5 . 5 . . . . Feedback Events 1 | . . . . . . . 1 . . . . Hackware Fried 1 | . . . . . . . 1 . . . . Feedback Blocked . | . . . . . . . . . . . . Robot Schematics Acquired 4 | . 1 . 2 . 1 . . . . . . Robots Built 3 | . . . . . 3 . . . . . . Authchips 1 | . . . . . 1 . . . . . . Time 58 | . . . . . 58 . . . . . . Total Robot Build Rating 9 | . . . . . 9 . . . . . . Part Schematics Acquired 8 | . 1 . . . . . 6 1 . . . Parts Built . | . . . . . . . . . . . . Authchips . | . . . . . . . . . . . . Time . | . . . . . . . . . . . . Total Part Build Rating . | . . . . . . . . . . . . Parts Repaired . | . . . . . . . . . . . . Time . | . . . . . . . . . . . . Parts Recycled . | . . . . . . . . . . . . Recycled Matter . | . . . . . . . . . . . . Retrieved Matter . | . . . . . . . . . . . . Retrieved Components 14 | . . . 3 . . . 11 . . . . Parts Scanalyzed 2 | . . . . . . . 1 1 . . . Part Schematics Acquired 2 | . . . . . . . 1 1 . . . Parts Damaged . | . . . . . . . . . . . . Bothacking | -11 -10 -10 -7 -7 -5 -5 -5 -4 -4 -4 -4 ------------ Run | Yrd Mat Sub Rec Scr Fac Was Fac Fac Upp Upp War Used RIF Installer . | . . . . . . . . . . . . Robots Hacked 7 | . . . . . . . 6 1 . . . Non-combat 6 | . . . . . . . 6 . . . . Combat . | . . . . . . . . . . . . Robot Hacks Applied 9 | . . . . . . . 9 . . . . parse_system 2 | . . . . . . . 2 . . . . no_distress 4 | . . . . . . . 4 . . . . find_recycling 2 | . . . . . . . 2 . . . . find_station 1 | . . . . . . . 1 . . . . Manual 1 | . . . . . . . . 1 . . . Relay Couplers Released 1 | . . . . . 1 . . . . . . Machine Destruction 1 | . . . . . 1 . . . . . . Fabnet Peak Effective % . | . . . . . . . . . . . . Robots Rewired 5 | . . . . . . . . . . . 5 Allies Hacked . | . . . . . . . . . . . . Hacks Repelled . | . . . . . . . . . . . . Allies | -11 -10 -10 -7 -7 -5 -5 -5 -4 -4 -4 -4 -------- Run | Yrd Mat Sub Rec Scr Fac Was Fac Fac Upp Upp War Total Allies 37 | . . . . . 3 19 5 . 3 1 6 Largest Group 19 | . . . . . 2 19 18 . 2 1 5 Highest-Rated Group 702 | . . . . . 32 702 664 . 105 49 297 Highest-Rated Ally 68 | . . . . . 16 50 50 . 58 49 68 Total Orders 2 | . . . . . . . 1 . . . 1 GUARD 1 | . . . . . . . . . . . 1 EXPLORE 1 | . . . . . . . 1 . . . . Ally Attacks 206 | . . . . . 7 93 87 . 5 . 14 Total Damage 7115 | . . . . . 57 3737 2613 . 48 . 660 Kills 26 | . . . . . . 7 16 . . . 3 Allies Corrupted 2 | . . . . . . . 1 . . . 1 Allies Melted 1 | . . . . . . . . . . . 1 Intel | -11 -10 -10 -7 -7 -5 -5 -5 -4 -4 -4 -4 ------- Run | Yrd Mat Sub Rec Scr Fac Was Fac Fac Upp Upp War Robot Analysis Total 1 | . 1 . . . . . . . . . . Derelict Logs Recovered 4 | . . . . 3 . . . . 1 . . Drone Launches 2 | . . . . . . . 2 . . . . Drone Recoveries . | . . . . . . . . . . . . Exploration | -11 -10 -10 -7 -7 -5 -5 -5 -4 -4 -4 -4 ------------- Run | Yrd Mat Sub Rec Scr Fac Was Fac Fac Upp Upp War Turns Passed 17830 | 128 1853 269 1791 7628 1498 550 1319 555 604 458 1177 Spaces Moved 11486 | 71 895 100 712 2834 2421 529 1614 314 805 358 833 Core 402 | 7 . . . . . . 1 . 343 24 27 Treads 2890 | . 427 100 712 1651 . . . . . . . Legs 1581 | . 441 . . . . . . . . 334 806 Wheels 1333 | 64 27 . . 1183 33 . 26 . . . . Hover 972 | . . . . . . 95 155 266 456 . . Flight 4308 | . . . . . 2388 434 1432 48 6 . . Fastest Speed 21 | 50 90 160 240 115 21 31 28 42 29 100 50 Average Speed 127 | 86 138 220 240 265 31 83 38 53 60 119 117 Slowest Speed 320 | 90 190 240 240 320 205 117 250 120 100 190 120 Overloaded Moves . | . . . . . . . . . . . . Propulsion Burnouts . | . . . . . . . . . . . . Robots Hopped 15 | . . . . . 7 . 8 . . . . Cave-ins Triggered 1 | . . . . . . . 1 . . . . Exploration Rate (%) 58 | 5 99 11 95 93 46 89 48 11 75 51 74 Regions Visited 11 Branch Regions 6 Pre-discovered Areas 1 | . . . . . . . . . 1 . . Known Exits Taken 7 | . 1 1 1 . . . 1 1 1 1 . Unknown Exits Taken 2 | 1 . . . 1 . . . . . . . Scrap Searched 15 | . . . . 12 . . . . 1 2 . Spaces Dug 83 | . . . . . 49 . 28 5 1 . . Terrain Destroyed 371 | . 40 6 3 . 90 . 220 5 7 . . Melee 83 | . . . . . 49 . 28 5 1 . . Projectile 6 | . . . . . . . . . 6 . . AOE 282 | . 40 6 3 . 41 . 192 . . . . Terrain Rammed . | . . . . . . . . . . . . Walls Destroyed . | . . . . . . . . . . . . Machines Disabled . | . . . . . . . . . . . . Actions | -11 -10 -10 -7 -7 -5 -5 -5 -4 -4 -4 -4 --------- Run | Yrd Mat Sub Rec Scr Fac Was Fac Fac Upp Upp War Total 14273 | 111 1473 124 769 2964 3010 637 2202 678 915 389 1001 Wait 1681 | . 493 . 22 1 310 57 410 300 31 . 57 Move 11447 | 70 894 99 711 2833 2407 528 1598 313 804 357 833 Hop 14 | . . . . . 7 . 7 . . . . Pick Up 330 | 17 29 6 11 83 59 13 39 20 18 17 18 Fast Attach . | . . . . . . . . . . . . Attach 132 | 7 2 1 3 7 34 8 20 16 18 6 10 Detach 9 | . . . . . 2 3 . . 3 . 1 Swap 94 | . 11 5 2 4 27 8 16 2 . 2 17 Drop 186 | 2 22 . 6 36 48 14 27 7 6 5 13 Fire 118 | 15 22 13 14 . 9 6 16 2 14 . 7 Melee 233 | . . . . . 106 . 67 16 21 2 21 Ram 4 | . . . . . . . 2 2 . . . Kick . | . . . . . . . . . . . . Crush . | . . . . . . . . . . . . Escape Stasis . | . . . . . . . . . . . . Rewire 24 | . . . . . . . . . . . 24 Trap . | . . . . . . . . . . . . Miscellaneous 1 | . . . . . 1 . . . . . . Route ------- -11/Scrapyard -10/Materials (discovered 6 exits: *Mat x3 / [*Min x2] / *Sub) -10/Subcaves (discovered 2 exits: Mat / *Rec) -7/Recycling (discovered 2 exits: *Fac / *Scr) -7/Scraptown (discovered 2 exits: *Fac x2) -5/Factory (discovered 3 exits: *Fac / *Upp x2) -5/Waste -5/Factory (discovered 5 exits: *Fac x3 / *Upp x2) -4/Factory -4/Upper Caves -4/Upper Caves -4/Warlord History --------- Turn | Location | Event 15 | -11/Scrapyard | Discovered new exit (range 15) 129 | -11/Scrapyard | Entered Materials 261 | -10/Materials | Discovered new exit (range 7) 302 | -10/Materials | Build established: Mutant 428 | -10/Materials | Discovered new exit (range 11) 713 | -10/Materials | Discovered new exit (range 16) 888 | -10/Materials | Discovered new exit (range 16) 1075 | -10/Materials | Loaded intel: 10 trap records 1133 | -10/Materials | Learned 4 Subcaves zone layouts 1223 | -10/Materials | Identified exit to Subcaves 1223 | -10/Materials | Identified exit to Materials 1223 | -10/Materials | Learned location of 1 exit from Materials 1279 | -10/Materials | Learned 2 Mines zone layouts 1321 | -10/Materials | Learned location of 3 exits from Materials 1359 | -10/Materials | Learned location of 1 exit from Recycling 1408 | -10/Materials | Learned Materials trap positions 1982 | -10/Materials | Entered Subcaves 1983 | -10/Subcaves | Identified exit to Recycling 1984 | -10/Subcaves | Identified exit to Materials 2162 | -10/Subcaves | Shifting Twisted Machinery released Piercing Trap 2251 | -10/Subcaves | Entered Recycling 2252 | -7/Recycling | Identified exit to Scraptown 3421 | -7/Recycling | Discovered new exit (range 5) 3977 | -7/Recycling | Scanned before Scraplab entrance 4013 | -7/Recycling | Entered Scraplab 4042 | -7/Recycling | Entered Scraptown 4044 | -7/Scraptown | System corruption cleaned by C-Scrubber 4519 | -7/Scraptown | Visited SPCMW 4657 | -7/Scraptown | Visited Assassins FH 4673 | -7/Scraptown | Heard Great Nut preacher, LISTEN AND RECITE! 4765 | -7/Scraptown | Visited TADAMA 4900 | -7/Scraptown | Visited Supply Room 4975 | -7/Scraptown | Visited UFD Registry 4975 | -7/Scraptown | Registered with UFD as "Microshell" 5128 | -7/Scraptown | Scanned Subdweller tech in exchange for log data 5138 | -7/Scraptown | Learned Research emergency access door positions 5141 | -7/Scraptown | Learned Research stockpile data 5144 | -7/Scraptown | Learned Research interactive machine intel 5181 | -7/Scraptown | Discovered new exit (range 11) 6308 | -7/Scraptown | Visited Bundlers 6449 | -7/Scraptown | Visited Comm Corps 6590 | -7/Scraptown | Visited IN-MT5's Study 6840 | -7/Scraptown | Visited Science Guys 6961 | -7/Scraptown | Visited Abandonware Association 7000 | -7/Scraptown | Learned abandonware demo "TRNCOAT.EXE" 7089 | -7/Scraptown | Visited Derelict Rescue Squad 7109 | -7/Scraptown | Found DRS Beacon 7542 | -7/Scraptown | Visited Chapter 10 7683 | -7/Scraptown | Visited Supply Room 8089 | -7/Scraptown | Visited DA-N13 Charitable Foundation 8102 | -7/Scraptown | Found DCF Scrap (25 items) 8204 | -7/Scraptown | Visited LU-1G1's Boring Crew 8287 | -7/Scraptown | Visited Sword Containment 8480 | -7/Scraptown | Visited Curators Association 9790 | -7/Scraptown | Visited Scrapoid Pod Storage 9800 | -7/Scraptown | Found Scrapoid Pod 9920 | -7/Scraptown | Build established: Hauler-Mutant 11304 | -7/Scraptown | Found Scrap Suit 11343 | -7/Scraptown | Discovered new exit (range 5) 11670 | -7/Scraptown | Entered Factory 11670 | -5/Factory | Evolved 10 slots: Propulsion x4, Utility x6 11780 | -5/Factory | Discovered new exit (range 15) 11922 | -5/Factory | Identified exit to Upper Caves 11991 | -5/Factory | Fabricated G-47 Trooper? 12062 | -5/Factory | Build established: Hacker-Sprinter 12734 | -5/Factory | Cargo convoy interrupted 12857 | -5/Factory | Discovered new exit (range 7) 12859 | -5/Factory | Identified exit to Factory 13168 | -5/Factory | Sucked down chute 13168 | -5/Factory | Entered Waste 13175 | -5/Waste | Spotted C-40 Crusher 13194 | -5/Waste | Warlord forces began an assault 13221 | -5/Waste | Spotted C-40 Crusher 13224 | -5/Waste | Spotted C-40 Crusher 13228 | -5/Waste | Allies destroyed C-40 Crusher 13236 | -5/Waste | Allies destroyed C-40 Crusher 13247 | -5/Waste | Spotted C-40 Crusher 13247 | -5/Waste | Allies destroyed C-40 Crusher 13260 | -5/Waste | Spotted C-40 Crusher 13264 | -5/Waste | Allies destroyed C-40 Crusher 13377 | -5/Waste | Spotted C-40 Crusher 13379 | -5/Waste | Allies destroyed C-40 Crusher 13386 | -5/Waste | Build established: Hacker-Mutant 13424 | -5/Waste | Allies destroyed C-40 Crusher 13480 | -5/Waste | Discovered new exit (range 16) 13617 | -5/Waste | Found Broken Gamma Bomb Array 13702 | -5/Waste | Identified exit to Factory 13718 | -5/Waste | Entered Factory 13718 | -5/Factory | Accompanied by 18 allies 13737 | -5/Factory | Discovered exit to Upper Caves (range 9) 13777 | -5/Factory | Discovered exit to Upper Caves (range 8) 13814 | -5/Factory | Garrison activated, responded to threat 13860 | -5/Factory | Lost 3 allies 14035 | -5/Factory | Crushed by falling debris 14058 | -5/Factory | Adv. System Shield fried by hacking feedback 14078 | -5/Factory | Discovered exit to Factory (range 15) 14111 | -5/Factory | Scrapoids reinforcements arrived? 14302 | -5/Factory | Discovered exit to Factory (range 9) 14618 | -5/Factory | First assault squad dispatched 14693 | -5/Factory | Discovered exit to Factory (range 7) 14804 | -5/Factory | Core integrity fell below 50% 14832 | -5/Factory | System corruption reached 10% 14849 | -5/Factory | Lost 9 parts (1p2n5u1w) 14904 | -5/Factory | Lost 4 parts (3n1w) 14967 | -5/Factory | Core integrity fell below 20% 15037 | -5/Factory | Entered another Factory area 15037 | -4/Factory | Evolved 2 slots: Utility x2 15065 | -4/Factory | Lost 3 parts (1p2n) 15314 | -4/Factory | First assault squad dispatched 15338 | -4/Factory | Build established: Scavenger-Scout 15582 | -4/Factory | Discovered new exit (range 7) 15591 | -4/Factory | Identified exit to Upper Caves 15592 | -4/Factory | Lost 5 parts (3n2u) 15592 | -4/Factory | Entered Upper Caves 15642 | -4/Upper Caves | Learned location of Armory (-3) 15642 | -4/Upper Caves | Learned location of 2 exits from Lower Caves 15642 | -4/Upper Caves | Learned location of 1 exit from Research 15642 | -4/Upper Caves | Learned Research stockpile data 15643 | -4/Upper Caves | Attracted the attention of an 0b10 base 15698 | -4/Upper Caves | Lost 4 parts (1p2n1u) 15765 | -4/Upper Caves | Lost 4 parts (1p3n) 15839 | -4/Upper Caves | Build established: Scavenger-Mutant 16155 | -4/Upper Caves | Discovered new exit (range 11) 16166 | -4/Upper Caves | Identified exit to Upper Caves 16196 | -4/Upper Caves | Entered another Upper Caves area 16361 | -4/Upper Caves | Attracted the attention of an 0b10 checkpoint 16644 | -4/Upper Caves | Discovered new exit (range 8) 16652 | -4/Upper Caves | Identified exit to Warlord 16654 | -4/Upper Caves | Entered Warlord 16696 | -4/Warlord | System corruption cleaned by Quarantine Array 17101 | -4/Warlord | Visited the Vortex Lab 17117 | -4/Warlord | Warlord's base attacked by MAIN.C 17118 | -4/Warlord | Found Prototype Energy Gun 17226 | -4/Warlord | Rebuked by Warlord 17255 | -4/Warlord | Identified Vortex Shotgun 17333 | -4/Warlord | Build established: Scavenger-Gladiator 17384 | -4/Warlord | Found Prototype Device 17385 | -4/Warlord | Identified Minesniffer Drone Bay 17467 | -4/Warlord | Warlord forces counterattacked 17544 | -4/Warlord | Lost 6 allies 17592 | -4/Warlord | Spotted Executioner 17617 | -4/Warlord | Lost 16 allies 17622 | -4/Warlord | Core integrity fell below 50% 17673 | -4/Warlord | Destroyed Executioner 17696 | -4/Warlord | Lost 4 allies 17755 | -4/Warlord | Spotted Striker 17792 | -4/Warlord | Warlord base infiltrated, sounded retreat 17806 | -4/Warlord | Core integrity fell below 20% 17831 | -4/Warlord | Destroyed by Enhanced Demolisher with Chain Missile Launcher Last Messages --------------- 17805_ Myomer Leg destroyed. 17805_ I-47 Archangel destroyed. 17805_ Myomer Leg destroyed. 17805_ G-67 Veteran destroyed. 17806_ G-67 Veteran critical meltdown. 17806_ Flexi-carbon Leg melted. 17807_ ANNOUNCEMENT: MAIN.C reinforcements approaching through caves, arriving soon. 17810_ G-67 Veteran destroyed. 17812_ Energy Well destroyed. 17814_ Flexi-carbon Leg destroyed. 17815_ Dropped Med. Storage Unit. 17816_ Dropped Dirty Datajack. 17816_ Dropped KE Penetrator. 17817_ ANNOUNCEMENT: Detected 1 Programmer squad, 2 Melee squads, 1 Grunt squad. Companion Sword: "Fine, just brush me aside like I'm nothing, see where that gets you." 17817_ Adv. Targeting Computer destroyed. 17831_ The unstable cave ceiling collapses. Map ----- +----------------------------------------------------+ | ????????##############????#"""" """"## #??????? | | ???????? # #????#"""" """## ##?????? | | ????????" # #????############# X#?????? | | ????? """ # ! / #????????????????# ##?????? | | ??????""" # ! / ################## #??????? | | ??????""" # ! ! # ^ #??????? | | ???????"" # # ### ^ #??????? | | ??????? # + #?# """"" #??????? | | ???????? # # #?# """"" #?????? | | ???????? ###+####### #?# """"" #####?? | | #########+## #????# #?# #!! ## | | #????# #?# # " | | #????# #?# # # | | ###### ##### #????# #?#################!! # | | ?????###??## ####### ##?????? ####"######+ | | ??????????# ## ## ###### "" # % ^ | | ???######## # | | ???#""!!!## ; " * ! | | ???#""!!!## #= " %% | | ???#"" + #### ## %"" # !%! | | ???#""!!!### #### # ## ##"# ## | | ???#######?# ### c# # g""" ###" ! % | | ???????????# # cc l Y """ ## != | | ????######## # g bM W """ ##"# ==!] | | ????#"""""## # "" Kcg """ / [%[ [=%[* | | ????#"""X" # b Ycd c @ #?""" ###"# %!% # | | ????#"" # Kg % [ K #?? ??# | | ????#"""X" + g #?#+#??# ! | | ????#"""""## % # ;## #??# %=% | | ????######## ## ### #?## /= =%! | | ???????????# ; ######## #?# #?#" %! % | | ????????####+++##########??# #?# #?## %= %# | | ????????#" #??# ### #?## % !=! | | ????????#" #??# #?#" [ !]==*% | | ????????#" #?## #?###"# *=%%!=# | | ????????#" #?# ##?# ###!=% ## | | ????????#" "# X#?## ######?#[//# # | | ????????#" "##"""##??# ## #####*[ | | ????????#" "#????????# !%=*!%% | | ????????#" "#??????###+#### ]! % | | ????????#" "#??????# # | | ????????#" "#??????# # #### ### # # | | ????????#" " "#??????# + #??# # | | ????????#"""""""""#??????# "" # ##### # | | ????????##########???????# "" # ## "# | | ?????????????????????????# """ # ## "# | | ?????????????????????????# """ # + X# | | ?????????????????????????# "" ## ### "# # | | ?????????????????????????# "" ####?###### | | ?????????????????????????# #?????????# | +----------------------------------------------------+ Best States ------------- Heat Dissipation 67 Coolant Potential 50 Energy Generation 29 Energy Capacity 665 Matter Stores 324 Matter Capacity 450 Sight Range 16 Robot Scan Range 15 Terrain Scan Density 10 Power Amplification 20 EM Shielding 3 Corruption Block 15 Armor Coverage 225 Resistance: KI 20 Resistance: TH 20 Resistance: EX 20 Resistance: EM 45 Resistance: I 20 Resistance: S 20 Resistance: P 20 Core Shielding 20 Propulsion Shielding 66 Utility Shielding 66 Weapon Shielding 66 Phase Shifting 5 Evasion (%) 68 Targeting Accuracy 8 Melee Accuracy 24 Target Analysis 6 Recoil Reduction 2 Salvage Targeting 1 Offensive Hacking 21 Defensive Hacking 44 Authchip Count 7 Item Schematics ----------------- Hcp. Storage Unit | -10/Materials | Hacked Arm. Huge Wheel | -5/Factory | Hacked Hacking Suite | -5/Factory | Hacked Q-thruster | -5/Factory | Hacked Imp. Propulsion Shielding | -5/Factory | Scanalyzed Imp. Focal Shield | -5/Factory | Extracted Antigrav Array | -5/Factory | Hacked Enh. Nova Cannon | -4/Factory | Scanalyzed Robot Schematics ------------------ M-13 Machinist | -10/Materials | Hacked M-28 Smith | -7/Recycling | Hacked G-47 Trooper | -7/Recycling | Hacked D-63 Destroyer | -5/Factory | Downloaded Fabricated ------------ G-47 Trooper | x3 | -5/Factory | Authchip Alien Tech Used ----------------- None Achievements -------------- None Challenges ------------ None Game ------ Seed SchematicCentriumHumpback Manual? 0 Play Time 02:29:52 Cumulative 561.5 hours Start 2024.08.09 @ 10:07:13 End 2024.08.09 @ 12:36:45 Sessions 1 Manual Loads 0 Difficulty Adventurer Special Mode None Game No. 107 Rogue 0 Adventurer 107 Explorer 0 Win Type - Total 7 Types 4/0/1/2/0/0/0/0/0 Lore% 64 Gallery% 79 Achievement% 70 Wizard Run 0 Options --------- Layout 2 ASCII 0 Keyboard 0 Movement Mouse Keybinds 0 Fullscreen 1 Font 24/Smallcaps Map View 50x49 Zoom Use 1% Tactical HUD 1 Map Filters NONE Filters NONE Steam 1 RUN: 679a1e47-d2b0-485d-8468-e20e95f6a9f6